lending/lending_fUSD_20250210
["ID","MTS","AMOUNT","RATE_DAILY","PERIOD"]
[352619899,1739202652413,-500.0,0.00011095,2]
[352619901,1739202652434,-500.0,0.00011095,2]
[352619904,1739202652451,-990.59,0.00011095,2]
[352619906,1739202652471,-503.03914997,0.00011095,2]
[352619908,1739202652486,-500.0,0.00011095,2]
[352619910,1739202652499,-501.16270822,0.00011095,2]
[352619913,1739202652516,-500.0,0.00011095,2]
[352619915,1739202652530,-500.0,0.00011095,2]
[352619917,1739202652545,-599.2,0.00011095,2]
[352619919,1739202652558,-500.0,0.00011095,2]
[352619921,1739202652572,-500.0,0.00011095,2]
[352619923,1739202652588,-1380.74,0.00011095,2]
[352619925,1739202652602,-500.0,0.00011095,2]
[352619927,1739202652616,-982.61,0.00011095,2]
[352619929,1739202652632,-504.38531573,0.00011095,2]
[352619932,1739202652647,-500.0,0.00011095,2]
[352619934,1739202652661,-875.6,0.00011095,2]
[352619936,1739202652677,-500.0,0.00011095,2]
[352619937,1739202652693,-500.0,0.00011095,2]
[352619938,1739202652708,-500.0,0.00011095,2]
[352619939,1739202652723,-500.0,0.00011095,2]
[352619940,1739202652737,-500.0,0.00011095,2]
[352619941,1739202652752,-500.0,0.00011095,2]
[352619942,1739202652767,-1088.45,0.00011095,2]
[352619943,1739202652782,-500.0,0.00011095,2]
[352619945,1739202652796,-500.0,0.00011095,2]
[352619948,1739202652810,-500.0,0.00011095,2]
[352619950,1739202652824,-500.0,0.00011095,2]
[352619953,1739202652838,-553.98,0.00011095,2]
[352619955,1739202652852,-500.0,0.00011095,2]
[352619958,1739202652866,-500.0,0.00011095,2]
[352619960,1739202652880,-500.0,0.00011095,2]
[352619963,1739202652895,-500.0,0.00011095,2]
[352619965,1739202652908,-500.0,0.00011095,2]
[352619968,1739202652925,-2191.2,0.00011095,2]
[352619970,1739202652941,-500.0,0.00011095,2]
[352619973,1739202652955,-546.79,0.00011095,2]
[352619975,1739202652970,-500.0,0.00011095,2]
[352619978,1739202652985,-610.23,0.00011095,2]
[352619980,1739202652998,-503.1323025,0.00011095,2]
[352619983,1739202653013,-504.7404703,0.00011095,2]
[352619985,1739202653027,-500.0,0.00011095,2]
[352619988,1739202653041,-500.0,0.00011095,2]
[352619990,1739202653055,-500.0,0.00011095,2]
[352619993,1739202653069,-2458.86,0.00011095,2]
[352619995,1739202653083,-502.52589655,0.00011095,2]
[352619998,1739202653099,-759.38,0.00011095,2]
[352620000,1739202653110,-418.08601997,0.00011095,2]
[352620002,1739202653119,-501.54120075,0.00011095,2]
[352620004,1739202653128,-500.0,0.00011095,2]
[352620006,1739202653138,-1740.37,0.00011095,2]
[352620008,1739202653147,-479.88162772,0.00011095,2]
[352620010,1739202653156,-578.99,0.00011095,2]
[352620012,1739202653167,-500.0,0.00011095,2]
[352620014,1739202653175,-500.0,0.00011095,2]
[352620016,1739202653185,-396.88,0.00011095,2]
[352620018,1739202653194,-1989.86016324,0.00011099,2]
[352620020,1739202653203,-1989.86016319,0.00011099,2]
[352620022,1739202653212,-150.0,0.00011145,2]
[352620024,1739202653223,-1989.86016319,0.00011178,2]
[352620046,1739202653424,-500.0,0.0001123,2]
[352620050,1739202653457,-500.0,0.0001123,2]
[352620052,1739202653467,-500.0,0.0001123,2]
[352620054,1739202653478,-500.0,0.0001123,2]
[352620056,1739202653487,-500.0,0.00011231,2]
[352620058,1739202653497,-500.0,0.00011231,2]
[352620060,1739202653506,-500.29784488,0.00011231,2]
[352620062,1739202653515,-500.0,0.00011231,2]
[352620064,1739202653525,-500.0,0.00011231,2]
[352620066,1739202653534,-500.0,0.00011231,2]
[352620068,1739202653543,-500.70026187,0.00011231,2]
[352620070,1739202653553,-501.10364691,0.00011231,2]
[352620072,1739202653564,-500.0,0.00011231,2]
[352620074,1739202653577,-503.5218714,0.00011231,2]
[352620076,1739202653587,-501.37307329,0.00011231,2]
[352620078,1739202653596,-500.0,0.00011231,2]
[352620080,1739202653606,-500.0,0.00011231,2]
[352620082,1739202653615,-500.0,0.00011231,2]
[352620084,1739202653624,-500.73124875,0.00011231,2]
[352620086,1739202653634,-411.36134606,0.00011231,2]
[352620088,1739202653643,-501.60724789,0.00011231,2]
[352620090,1739202653653,-501.15325316,0.00011231,2]
[352620092,1739202653662,-501.31052393,0.00011231,2]
[352620094,1739202653671,-502.1607178,0.00011231,2]
[352620096,1739202653681,-162.01980569,0.00011231,2]
[352620098,1739202653690,-500.71151841,0.00011231,2]
[352620100,1739202653699,-250.94871395,0.00011231,2]
[352620101,1739202653709,-502.02040831,0.00011231,2]
[352620103,1739202653718,-500.0,0.00011231,2]
[352620105,1739202653728,-404.86476891,0.00011231,2]
[352620107,1739202653738,-500.75335973,0.00011231,2]
[352620109,1739202653747,-505.33097454,0.00011231,2]
[352620111,1739202653757,-500.0,0.00011231,2]
[352620113,1739202653767,-501.34047964,0.00011231,2]
[352620115,1739202653776,-500.69684084,0.00011231,2]
[352620117,1739202653786,-500.84345233,0.00011231,2]
[352620119,1739202653795,-501.43645141,0.00011231,2]
[352620121,1739202653804,-501.24630233,0.00011231,2]
[352620123,1739202653813,-396.93495461,0.00011231,2]
[352620125,1739202653823,-553.8447068,0.00011231,2]
[352620127,1739202653833,-501.13495457,0.00011231,2]
[352620129,1739202653842,-506.94105941,0.00011231,2]
[352620131,1739202653852,-525.85116951,0.00011231,2]
[352620133,1739202653862,-303.13425853,0.00011231,2]
[352620135,1739202653872,-160.71257959,0.00011231,2]
[352620137,1739202653881,-500.0,0.00011231,2]
[352620139,1739202653891,-369.75083006,0.00011231,2]
[352620141,1739202653901,-500.0,0.00011231,2]
[352620143,1739202653910,-500.0,0.00011231,2]
[352620145,1739202653923,-500.0,0.00011231,2]
[352620147,1739202653937,-500.0,0.00011231,2]
[352620149,1739202653947,-500.0,0.00011231,2]
[352620151,1739202653956,-500.0,0.00011231,2]
[352620153,1739202653968,-500.0,0.00011231,2]
[352620155,1739202653981,-500.0,0.00011231,2]
[352620157,1739202653994,-500.0,0.00011231,2]
[352620159,1739202654005,-500.0,0.00011231,2]
[352620161,1739202654015,-501.33314188,0.00011231,2]
[352620163,1739202654024,-500.0,0.00011231,2]
[352620165,1739202654033,-151.0,0.00011231,2]
[352620167,1739202654043,-500.0,0.00011231,2]
[352620169,1739202654052,-817.001487,0.00011232,2]
[352620171,1739202654062,-854.112051,0.00011232,2]
[352620173,1739202654072,-500.0,0.00011232,2]
[352620175,1739202654081,-500.0,0.00011232,2]
[352620177,1739202654090,-500.0,0.00011232,2]
[352620179,1739202654099,-597.12841852,0.00011232,2]
[352620181,1739202654108,-503.03179883,0.00011232,2]
[352620183,1739202654118,-508.55013864,0.00011232,2]
[352620185,1739202654127,-500.0,0.00011232,2]
[352620187,1739202654137,-500.0,0.00011232,2]
[352620189,1739202654146,-500.0,0.00011232,2]
[352620191,1739202654155,-500.0,0.00011232,2]
[352620193,1739202654164,-500.0,0.00011232,2]
[352620195,1739202654176,-500.0,0.00011232,2]
[352620197,1739202654186,-500.0,0.00011232,2]
[352620199,1739202654195,-502.50671765,0.00011232,2]
[352620201,1739202654204,-326.45029611,0.00011232,2]
[352620203,1739202654214,-515.05150102,0.00011232,2]
[352620205,1739202654223,-500.0,0.00011232,2]
[352620207,1739202654233,-500.0,0.00011232,2]
[352620209,1739202654242,-500.0,0.00011232,2]
[352620211,1739202654252,-500.0,0.00011232,2]
[352620213,1739202654262,-500.0,0.00011232,2]
[352620215,1739202654271,-500.0,0.00011232,2]
[352620217,1739202654280,-1071.93,0.00011232,2]
[352620219,1739202654290,-500.0,0.00011232,2]
[352620221,1739202654299,-500.0,0.00011232,2]
[352620223,1739202654309,-500.0,0.00011232,2]
[352620224,1739202654318,-500.0,0.00011232,2]
[352620226,1739202654328,-500.0,0.00011232,2]
[352620228,1739202654338,-500.0,0.00011232,2]
[352620230,1739202654347,-481.92781346,0.00011232,2]
[352620253,1739202654641,-18.07218654,0.00011232,2]
[352620255,1739202654650,-500.0,0.00011232,2]
[352620257,1739202654660,-505.82532293,0.00011232,2]
[352620259,1739202654669,-500.0,0.00011232,2]
[352620261,1739202654678,-485.45407628,0.00011232,2]
[352620268,1739202654738,-14.54592372,0.00011232,2]
[352620270,1739202654747,-500.0,0.00011232,2]
[352620272,1739202654756,-464.21227651,0.00011232,2]
[352620274,1739202654766,-500.0,0.00011232,2]
[352620276,1739202654776,-500.0,0.00011232,2]
[352620278,1739202654786,-4.44179957,0.00011232,2]
[352620282,1739202654818,-470.21741098,0.00010957,2]
[352620284,1739202654827,-327.28256902,0.00010958,2]
[352620287,1739202654839,-172.71743098,0.00010958,2]
[352620289,1739202654849,-495.55820043,0.00011232,2]
[352620290,1739202654858,-500.0,0.00011232,2]
[352620292,1739202654868,-249.12286859,0.00011232,2]
[352620295,1739202654879,-250.87713141,0.00011232,2]
[352620297,1739202654889,-154.67844359,0.00011232,2]
[352620299,1739202654900,-345.32155641,0.00011232,2]
[352620301,1739202654914,-500.0,0.00011232,2]
[352620303,1739202654930,-500.0,0.00011232,2]
[352620305,1739202654939,-500.0,0.00011232,2]
[352620307,1739202654949,-500.0,0.00011232,2]
[352620309,1739202654959,-500.0,0.00011232,2]
[352620311,1739202654971,-500.0,0.00011232,2]
[352620313,1739202654980,-500.0,0.00011232,2]
[352620315,1739202654990,-500.0,0.00011232,2]
[352620317,1739202655000,-500.0,0.00011232,2]
[352620319,1739202655010,-500.0,0.00011232,2]
[352620321,1739202655019,-500.0,0.00011232,2]
[352620323,1739202655028,-540.61477194,0.00011232,2]
[352620325,1739202655037,-500.0,0.00011232,2]
[352620326,1739202655047,-18.88570817,0.00011232,2]
[352620329,1739202655059,-481.11429183,0.00011232,2]
[352620331,1739202655069,-534.71,0.00011232,2]
[352620333,1739202655077,-583.53,0.00011232,2]
[352620335,1739202655087,-500.0,0.00011232,2]
[352620337,1739202655096,-172.72261853,0.00011232,2]
[352620340,1739202655115,-454.83099315,0.00011232,2]
[352620342,1739202655125,-500.0,0.00011232,2]
[352620344,1739202655135,-500.0,0.00011232,2]
[352620346,1739202655144,-500.0,0.00011232,2]
[352620348,1739202655154,-500.0,0.00011232,2]
[352620350,1739202655164,-500.0,0.00011232,2]
[352620352,1739202655174,-500.0,0.00011232,2]
[352620354,1739202655183,-500.0,0.00011232,2]
[352620356,1739202655192,-500.0,0.00011232,2]
[352620358,1739202655202,-500.0,0.00011232,2]
[352620360,1739202655211,-500.0,0.00011232,2]
[352620361,1739202655220,-500.0,0.00011232,2]
[352620363,1739202655229,-500.0,0.00011232,2]
[352620365,1739202655238,-500.0,0.00011232,2]
[352620367,1739202655248,-500.0,0.00011232,2]
[352620370,1739202655260,-500.0,0.00011232,2]
[352620372,1739202655270,-500.0,0.00011232,2]
[352620373,1739202655279,-500.0,0.00011232,2]
[352620375,1739202655289,-500.0,0.00011232,2]
[352620377,1739202655298,-500.0,0.00011232,2]
[352620379,1739202655308,-500.0,0.00011232,2]
[352620381,1739202655318,-500.0,0.00011232,2]
[352620383,1739202655328,-500.0,0.00011232,2]
[352620385,1739202655338,-500.0,0.00011232,2]
[352620387,1739202655348,-500.0,0.00011232,2]
[352620389,1739202655358,-500.0,0.00011232,2]
[352620391,1739202655368,-500.0,0.00011232,2]
[352620393,1739202655377,-500.0,0.00011232,2]
[352620395,1739202655387,-500.0,0.00011232,2]
[352620397,1739202655397,-536.83,0.00011232,2]
[352620399,1739202655407,-338.2,0.00011232,2]
[352620401,1739202655416,-500.0,0.00011232,2]
[352620403,1739202655427,-646.43,0.00011232,2]
[352620404,1739202655436,-500.0,0.00011232,2]
[352620407,1739202655447,-500.0,0.00011232,2]
[352620408,1739202655456,-500.0,0.00011232,2]
[352620410,1739202655466,-500.0,0.00011232,2]
[352620412,1739202655476,-500.0,0.00011232,2]
[352620414,1739202655485,-500.0,0.00011232,2]
[352620416,1739202655494,-500.0,0.00011232,2]
[352620418,1739202655505,-500.0,0.00011232,2]
[352620421,1739202655515,-500.0,0.00011232,2]
[352620422,1739202655524,-500.0,0.00011232,2]
[352620438,1739202655679,-500.0,0.00011232,2]
[352620440,1739202655690,-500.0,0.00011232,2]
[352620442,1739202655700,-500.0,0.00011232,2]
[352620445,1739202655710,-500.0,0.00011232,2]
[352620447,1739202655720,-500.0,0.00011232,2]
[352620448,1739202655730,-500.0,0.00011232,2]
[352620450,1739202655739,-500.0,0.00011232,2]
[352620452,1739202655749,-500.0,0.00011232,2]
[352620454,1739202655759,-500.0,0.00011232,2]
[352620456,1739202655768,-500.0,0.00011232,2]
[352620458,1739202655778,-500.0,0.00011232,2]
[352620461,1739202655789,-500.0,0.00011232,2]
[352620462,1739202655798,-500.0,0.00011232,2]
[352620464,1739202655808,-500.0,0.00011232,2]
[352620467,1739202655819,-500.0,0.00011232,2]
[352620468,1739202655830,-500.0,0.00011232,2]
[352620470,1739202655840,-500.0,0.00011232,2]
[352620473,1739202655850,-1291.14,0.00011232,2]
[352620474,1739202655861,-500.0,0.00011232,2]
[352620477,1739202655871,-500.0,0.00011232,2]
[352620479,1739202655880,-500.0,0.00011232,2]
[352620481,1739202655890,-500.0,0.00011232,2]
[352620482,1739202655900,-500.0,0.00011232,2]
[352620485,1739202655911,-500.0,0.00011232,2]
[352620486,1739202655926,-500.0,0.00011232,2]
[352620489,1739202655936,-500.0,0.00011232,2]
[352620490,1739202655946,-500.0,0.00011232,2]
[352620492,1739202655956,-500.0,0.00011232,2]
[352620494,1739202655967,-500.0,0.00011232,2]
[352620496,1739202655977,-500.0,0.00011232,2]
[352620498,1739202655987,-500.0,0.00011232,2]
[352620500,1739202655996,-500.0,0.00011232,2]
[352620502,1739202656007,-500.0,0.00011232,2]
[352620504,1739202656017,-659.53,0.00011232,2]
[352620506,1739202656027,-500.0,0.00011232,2]
[352620508,1739202656036,-500.0,0.00011232,2]
[352620510,1739202656046,-500.0,0.00011232,2]
[352620512,1739202656056,-667.95,0.00011232,2]
[352620514,1739202656065,-500.0,0.00011232,2]
[352620516,1739202656075,-500.0,0.00011232,2]
[352620518,1739202656083,-505.77342063,0.00011232,2]
[352620519,1739202656093,-500.0,0.00011232,2]
[352620521,1739202656102,-500.0,0.00011232,2]
[352620523,1739202656111,-500.0,0.00011232,2]
[352620525,1739202656121,-500.0,0.00011232,2]
[352620527,1739202656130,-500.0,0.00011232,2]
[352620529,1739202656140,-500.0,0.00011232,2]
[352620532,1739202656150,-500.0,0.00011232,2]
[352620533,1739202656159,-500.0,0.00011232,2]
[352620535,1739202656168,-500.0,0.00011232,2]
[352620537,1739202656178,-500.0,0.00011232,2]
[352620539,1739202656187,-500.0,0.00011232,2]
[352620541,1739202656197,-500.0,0.00011232,2]
[352620543,1739202656206,-500.0,0.00011232,2]
[352620545,1739202656215,-500.0,0.00011232,2]
[352620547,1739202656225,-500.0,0.00011232,2]
[352620549,1739202656235,-500.0,0.00011232,2]
[352620551,1739202656244,-500.0,0.00011232,2]
[352620553,1739202656254,-500.0,0.00011232,2]
[352620554,1739202656263,-500.0,0.00011232,2]
[352620555,1739202656273,-500.0,0.00011232,2]
[352620556,1739202656282,-500.0,0.00011232,2]
[352620557,1739202656294,-500.0,0.00011232,2]
[352620558,1739202656305,-500.0,0.00011232,2]
[352620559,1739202656315,-500.0,0.00011232,2]
[352620560,1739202656325,-500.0,0.00011232,2]
[352620562,1739202656335,-500.0,0.00011232,2]
[352620563,1739202656345,-500.0,0.00011232,2]
[352620565,1739202656355,-500.0,0.00011232,2]
[352620567,1739202656365,-500.0,0.00011232,2]
[352620569,1739202656375,-500.0,0.00011232,2]
[352620571,1739202656385,-500.0,0.00011232,2]
[352620573,1739202656395,-500.0,0.00011232,2]
[352620575,1739202656405,-500.0,0.00011232,2]
[352620577,1739202656415,-500.0,0.00011232,2]
[352620579,1739202656427,-500.0,0.00011232,2]
[352620581,1739202656437,-500.0,0.00011232,2]
[352620583,1739202656446,-624.38,0.00011232,2]
[352620585,1739202656456,-500.0,0.00011232,2]
[352620587,1739202656466,-508.80968716,0.00011232,2]
[352620589,1739202656475,-500.0,0.00011232,2]
[352620591,1739202656485,-500.0,0.00011232,2]
[352620593,1739202656494,-500.0,0.00011232,2]
[352620595,1739202656504,-500.0,0.00011232,2]
[352620597,1739202656513,-558.15,0.00011232,2]
[352620598,1739202656523,-500.0,0.00011232,2]
[352620599,1739202656532,-500.0,0.00011232,2]
[352620600,1739202656541,-502.3351736,0.00011232,2]
[352620601,1739202656550,-500.0,0.00011232,2]
[352620602,1739202656560,-708.83,0.00011232,2]
[352620603,1739202656570,-500.0,0.00011232,2]
[352620604,1739202656580,-500.0,0.00011232,2]
[352620605,1739202656590,-500.0,0.00011232,2]
[352620606,1739202656600,-201.00985983,0.00011232,2]
[352620607,1739202656610,-500.0,0.00011232,2]
[352620608,1739202656619,-500.0,0.00011232,2]
[352620609,1739202656628,-500.0,0.00011232,2]
[352620610,1739202656638,-500.0,0.00011232,2]
[352620612,1739202656647,-500.0,0.00011232,2]
[352620614,1739202656656,-500.0,0.00011232,2]
[352620616,1739202656666,-151.0,0.00011232,2]
[352620618,1739202656677,-151.0,0.00011232,2]
[352620619,1739202656687,-500.0,0.00011232,2]
[352620620,1739202656697,-543.22,0.00011232,2]
[352620621,1739202656707,-587.34,0.00011232,2]
[352620622,1739202656718,-500.0,0.00011232,2]
[352620623,1739202656728,-500.0,0.00011232,2]
[352620624,1739202656738,-500.0,0.00011232,2]
[352620625,1739202656747,-500.0,0.00011232,2]
[352620626,1739202656757,-504.72030071,0.00011232,2]
[352620627,1739202656766,-500.0,0.00011232,2]
[352620628,1739202656776,-509.60861505,0.00011232,2]
[352620629,1739202656785,-500.0,0.00011232,2]
[352620630,1739202656795,-500.0,0.00011232,2]
[352620631,1739202656805,-500.0,0.00011232,2]
[352620632,1739202656814,-500.0,0.00011232,2]
[352620633,1739202656824,-500.0,0.00011232,2]
[352620634,1739202656834,-502.04153236,0.00011232,2]
[352620635,1739202656843,-500.0,0.00011232,2]
[352620636,1739202656853,-500.0,0.00011232,2]
[352620637,1739202656862,-586.1,0.00011232,2]
[352620638,1739202656871,-500.0,0.00011232,2]
[352620639,1739202656882,-500.0,0.00011232,2]
[352620640,1739202656892,-500.0,0.00011232,2]
[352620641,1739202656903,-500.0,0.00011232,2]
[352620642,1739202656912,-500.0,0.00011232,2]
[352620643,1739202656924,-821.47,0.00011232,2]
[352620644,1739202656936,-546.83,0.00011232,2]
[352620645,1739202656946,-500.0,0.00011232,2]
[352620646,1739202656956,-500.0,0.00011232,2]
[352620647,1739202656967,-500.0,0.00011232,2]
[352620648,1739202656977,-500.0,0.00011232,2]
[352620649,1739202656987,-500.0,0.00011232,2]
[352620650,1739202656996,-500.0,0.00011232,2]
[352620651,1739202657007,-500.0,0.00011232,2]
[352620652,1739202657019,-500.0,0.00011232,2]
[352620653,1739202657028,-500.0,0.00011232,2]
[352620654,1739202657037,-500.0,0.00011232,2]
[352620655,1739202657047,-500.0,0.00011232,2]
[352620656,1739202657057,-500.0,0.00011232,2]
[352620657,1739202657067,-500.0,0.00011232,2]
[352620658,1739202657076,-500.0,0.00011232,2]
[352620659,1739202657086,-500.0,0.00011232,2]
[352620660,1739202657095,-500.0,0.00011232,2]
[352620661,1739202657105,-500.0,0.00011232,2]
[352620662,1739202657114,-500.0,0.00011232,2]
[352620664,1739202657123,-500.0,0.00011232,2]
[352620666,1739202657132,-500.0,0.00011232,2]
[352620667,1739202657143,-500.0,0.00011232,2]
[352620670,1739202657153,-762.51,0.00011232,2]
[352620672,1739202657162,-500.0,0.00011232,2]
[352620674,1739202657172,-0.18623637,0.00011232,2]
[352620713,1739202657538,-500.0,0.00010958,2]
[352620715,1739202657547,-500.0,0.00010958,2]
[352620717,1739202657556,-500.0,0.00010958,2]
[352620719,1739202657566,-500.0,0.00010958,2]
[352620721,1739202657576,-499.81376363,0.00011232,2]
[352620723,1739202657586,-500.0,0.00011232,2]
[352620725,1739202657596,-500.0,0.00011232,2]
[352620727,1739202657605,-500.0,0.00011232,2]
[352620729,1739202657615,-825.76,0.00011232,2]
[352620731,1739202657624,-500.0,0.00011232,2]
[352620733,1739202657634,-500.0,0.00011232,2]
[352620735,1739202657643,-683.39,0.00011232,2]
[352620737,1739202657653,-500.0,0.00011232,2]
[352620739,1739202657662,-208.06715128,0.00011232,2]
[352620741,1739202657673,-713.18,0.00011232,2]
[352620743,1739202657682,-500.0,0.00011232,2]
[352620745,1739202657691,-72.65059529,0.00011232,2]
[352620746,1739202657703,-427.34940471,0.00011232,2]
[352620747,1739202657712,-500.0,0.00011232,2]
[352620748,1739202657723,-500.0,0.00011232,2]
[352620749,1739202657732,-500.0,0.00011232,2]
[352620750,1739202657742,-500.0,0.00011232,2]
[352620751,1739202657752,-500.0,0.00011232,2]
[352620752,1739202657762,-517.44,0.00011232,2]
[352620753,1739202657771,-635.06,0.00011232,2]
[352620755,1739202657781,-500.0,0.00011232,2]
[352620757,1739202657790,-202.10130217,0.00011232,2]
[352620759,1739202657800,-500.0,0.00011232,2]
[352620761,1739202657810,-500.0,0.00011232,2]
[352620763,1739202657820,-500.0,0.00011232,2]
[352620765,1739202657829,-500.0,0.00011232,2]
[352620767,1739202657839,-500.0,0.00011232,2]
[352620769,1739202657848,-573.65,0.00011232,2]
[352620771,1739202657858,-500.0,0.00011232,2]
[352620773,1739202657867,-500.0,0.00011232,2]
[352620775,1739202657876,-173.29120358,0.00011232,2]
[352620777,1739202657885,-681.19,0.00011232,2]
[352620779,1739202657895,-500.0,0.00011232,2]
[352620781,1739202657904,-500.0,0.00011232,2]
[352620783,1739202657914,-500.0,0.00011232,2]
[352620785,1739202657928,-500.0,0.00011232,2]
[352620787,1739202657937,-777.54,0.00011232,2]
[352620789,1739202657947,-500.0,0.00011232,2]
[352620791,1739202657956,-500.0,0.00011232,2]
[352620793,1739202657966,-500.0,0.00011232,2]
[352620795,1739202657976,-500.0,0.00011232,2]
[352620797,1739202657986,-500.0,0.00011232,2]
[352620799,1739202657995,-500.0,0.00011232,2]
[352620801,1739202658007,-548.53,0.00011232,2]
[352620803,1739202658017,-500.0,0.00011232,2]
[352620805,1739202658027,-500.0,0.00011232,2]
[352620807,1739202658036,-557.0,0.00011232,2]
[352620809,1739202658045,-500.0,0.00011232,2]
[352620811,1739202658055,-500.0,0.00011232,2]
[352620813,1739202658064,-687.8,0.00011232,2]
[352620815,1739202658074,-500.0,0.00011232,2]
[352620817,1739202658083,-580.49,0.00011232,2]
[352620819,1739202658093,-664.05,0.00011232,2]
[352620821,1739202658103,-500.0,0.00011232,2]
[352620823,1739202658113,-556.77,0.00011232,2]
[352620825,1739202658122,-500.0,0.00011232,2]
[352620827,1739202658132,-599.99700733,0.00011232,2]
[352620829,1739202658141,-500.0,0.00011232,2]
[352620831,1739202658150,-500.0,0.00011232,2]
[352620833,1739202658159,-500.0,0.00011232,2]
[352620835,1739202658168,-500.0,0.00011232,2]
[352620837,1739202658179,-1433.81,0.00011232,2]
[352620839,1739202658188,-1000.15,0.00011232,2]
[352620841,1739202658197,-500.0,0.00011232,2]
[352620843,1739202658206,-505.99919679,0.00011232,2]
[352620845,1739202658216,-608.27,0.00011232,2]
[352620847,1739202658225,-500.0,0.00011232,2]
[352620849,1739202658236,-500.0,0.00011232,2]
[352620851,1739202658245,-500.0,0.00011232,2]
[352620853,1739202658255,-500.0,0.00011232,2]
[352620855,1739202658264,-500.0,0.00011232,2]
[352620857,1739202658273,-809.72,0.00011232,2]
[352620859,1739202658283,-329.71351237,0.00011232,2]
[352620861,1739202658292,-500.0,0.00011232,2]
[352620863,1739202658301,-500.0,0.00011232,2]
[352620865,1739202658310,-500.0,0.00011232,2]
[352620879,1739202658428,-500.0,0.00011232,2]
[352620883,1739202658463,-2481.36,0.00011232,2]
[352620885,1739202658474,-500.0,0.00011232,2]
[352620887,1739202658484,-601.52894794,0.00011232,2]
[352620889,1739202658493,-500.0,0.00011232,2]
[352620891,1739202658503,-500.0,0.00011232,2]
[352620893,1739202658512,-500.0,0.00011232,2]
[352620895,1739202658522,-582.71,0.00011232,2]
[352620897,1739202658531,-603.84,0.00011232,2]
[352620899,1739202658542,-500.0,0.00011232,2]
[352620901,1739202658551,-563.22,0.00011232,2]
[352620903,1739202658561,-500.0,0.00011232,2]
[352620905,1739202658571,-500.0,0.00011232,2]
[352620907,1739202658580,-884.5,0.00011232,2]
[352620909,1739202658590,-505.93240332,0.00011232,2]
[352620911,1739202658600,-505.23104258,0.00011232,2]
[352620913,1739202658611,-503.70360449,0.00011232,2]
[352620915,1739202658621,-500.0,0.00011232,2]
[352620917,1739202658631,-569.97,0.00011232,2]
[352620919,1739202658640,-500.0,0.00011232,2]
[352620921,1739202658650,-500.0,0.00011232,2]
[352620923,1739202658661,-882.59,0.00011232,2]
[352620925,1739202658670,-1893.98,0.00011232,2]
[352620927,1739202658681,-802.97,0.00011232,2]
[352620929,1739202658692,-500.0,0.00011232,2]
[352620931,1739202658701,-500.0,0.00011232,2]
[352620933,1739202658711,-500.0,0.00011232,2]
[352620935,1739202658720,-1240.94,0.00011232,2]
[352620937,1739202658729,-500.0,0.00011232,2]
[352620940,1739202658739,-500.0,0.00011232,2]
[352620942,1739202658748,-500.0,0.00011232,2]
[352620944,1739202658758,-500.0,0.00011232,2]